{"text_format":"3","workbook":"xlsx","n_sheets":1,"sheets":["Предложение"],"not_rendered":{"defined_names":20},"read":"whole","date_system":"1900"}

{"sheet":"Предложение","index":0,"n_rows":41,"n_cols":8,"rows_kept":41,"merged":[[1,1,3,1],[1,4,1,7],[2,4,2,7],[3,5,3,7],[33,4,33,5],[34,4,36,5],[37,4,37,5],[38,4,38,5],[39,4,39,5],[40,4,40,5]]}
[]
[null,"МЕСТО ДЛЯ ЛОГОТИПА",null,null,"ПРЕДЛОЖЕНИЕ ПО СТРОИТЕЛЬСТВУ"]
[{"$nulls":4},"ООО \"Ремонт домов\" | ул. Библиотечная, д. 89 г. Казань, Татарстан 123456 "]
[{"$nulls":4},"ТЕЛ: (123) 456-7890","ФАКС: (123) 456-7891"]
[]
[null,"КЛИЕНТ",null,null,"КОЛИЧЕСТВО","ОПИСАНИЕ","ЦЕНА ЗА ЕДИНИЦУ","СУММА"]
[null,"Лилия Медведева",null,null,10,"Гипсокартон",{"v":165,"d":"165.00 ₽"},{"$f":"IFERROR(Позиции[[#This Row],[КОЛИЧЕСТВО]]*Позиции[[#This Row],[ЦЕНА ЗА ЕДИНИЦУ]], \"\")","v":{"v":1650,"d":"1,650.00 ₽"}}]
[null,"НОМЕР СМЕТЫ",null,null,21,"Фанера",{"v":40,"d":"40.00 ₽"},{"$f":"IFERROR(Позиции[[#This Row],[КОЛИЧЕСТВО]]*Позиции[[#This Row],[ЦЕНА ЗА ЕДИНИЦУ]], \"\")","v":{"v":840,"d":"840.00 ₽"}}]
[null,"С-1234",null,null,5,"Столярное соединение",{"v":10.5,"d":"10.50 ₽"},{"$f":"IFERROR(Позиции[[#This Row],[КОЛИЧЕСТВО]]*Позиции[[#This Row],[ЦЕНА ЗА ЕДИНИЦУ]], \"\")","v":{"v":52.5,"d":"52.50 ₽"}}]
[null,"ДАТА",null,null,164,"Винты 25 см",{"v":2.75,"d":"2.75 ₽"},{"$f":"IFERROR(Позиции[[#This Row],[КОЛИЧЕСТВО]]*Позиции[[#This Row],[ЦЕНА ЗА ЕДИНИЦУ]], \"\")","v":{"v":451,"d":"451.00 ₽"}}]
[null,{"$f":"TODAY()","v":"2023-03-22"},null,null,6,"Душевая лейка",{"v":12,"d":"12.00 ₽"},{"$f":"IFERROR(Позиции[[#This Row],[КОЛИЧЕСТВО]]*Позиции[[#This Row],[ЦЕНА ЗА ЕДИНИЦУ]], \"\")","v":{"v":72,"d":"72.00 ₽"}}]
[null,"АДРЕС",null,null,18,"Плитка для душевой",{"v":5.5,"d":"5.50 ₽"},{"$f":"IFERROR(Позиции[[#This Row],[КОЛИЧЕСТВО]]*Позиции[[#This Row],[ЦЕНА ЗА ЕДИНИЦУ]], \"\")","v":{"v":99,"d":"99.00 ₽"}}]
[null,"ул. Строителей, д. 123",null,null,1,"Зеркало над раковиной",{"v":25,"d":"25.00 ₽"},{"$f":"IFERROR(Позиции[[#This Row],[КОЛИЧЕСТВО]]*Позиции[[#This Row],[ЦЕНА ЗА ЕДИНИЦУ]], \"\")","v":{"v":25,"d":"25.00 ₽"}}]
[null,"ГОРОД, РЕГИОН, ПОЧТОВЫЙ ИНДЕКС",{"$nulls":5},{"$f":"IFERROR(Позиции[[#This Row],[КОЛИЧЕСТВО]]*Позиции[[#This Row],[ЦЕНА ЗА ЕДИНИЦУ]], \"\")","v":{"v":0,"d":"0.00 ₽"}}]
[null,"Казань, Татарстан 654321",{"$nulls":5},{"$f":"IFERROR(Позиции[[#This Row],[КОЛИЧЕСТВО]]*Позиции[[#This Row],[ЦЕНА ЗА ЕДИНИЦУ]], \"\")","v":{"v":0,"d":"0.00 ₽"}}]
[null,"ТЕЛЕФОН",{"$nulls":5},{"$f":"IFERROR(Позиции[[#This Row],[КОЛИЧЕСТВО]]*Позиции[[#This Row],[ЦЕНА ЗА ЕДИНИЦУ]], \"\")","v":{"v":0,"d":"0.00 ₽"}}]
[null,"(502) 555-0123",{"$nulls":5},{"$f":"IFERROR(Позиции[[#This Row],[КОЛИЧЕСТВО]]*Позиции[[#This Row],[ЦЕНА ЗА ЕДИНИЦУ]], \"\")","v":{"v":0,"d":"0.00 ₽"}}]
[null,"ЭЛЕКТРОННАЯ ПОЧТА",{"$nulls":5},{"$f":"IFERROR(Позиции[[#This Row],[КОЛИЧЕСТВО]]*Позиции[[#This Row],[ЦЕНА ЗА ЕДИНИЦУ]], \"\")","v":{"v":0,"d":"0.00 ₽"}}]
[null,"liliya@contoso.com",{"$nulls":5},{"$f":"IFERROR(Позиции[[#This Row],[КОЛИЧЕСТВО]]*Позиции[[#This Row],[ЦЕНА ЗА ЕДИНИЦУ]], \"\")","v":{"v":0,"d":"0.00 ₽"}}]
[{"$nulls":7},{"$f":"IFERROR(Позиции[[#This Row],[КОЛИЧЕСТВО]]*Позиции[[#This Row],[ЦЕНА ЗА ЕДИНИЦУ]], \"\")","v":{"v":0,"d":"0.00 ₽"}}]
[{"$nulls":7},{"$f":"IFERROR(Позиции[[#This Row],[КОЛИЧЕСТВО]]*Позиции[[#This Row],[ЦЕНА ЗА ЕДИНИЦУ]], \"\")","v":{"v":0,"d":"0.00 ₽"}}]
[null,"ПРОДАВЕЦ",{"$nulls":5},{"$f":"IFERROR(Позиции[[#This Row],[КОЛИЧЕСТВО]]*Позиции[[#This Row],[ЦЕНА ЗА ЕДИНИЦУ]], \"\")","v":{"v":0,"d":"0.00 ₽"}}]
[null,"Глеб Селезнев",{"$nulls":5},{"$f":"IFERROR(Позиции[[#This Row],[КОЛИЧЕСТВО]]*Позиции[[#This Row],[ЦЕНА ЗА ЕДИНИЦУ]], \"\")","v":{"v":0,"d":"0.00 ₽"}}]
[null,"ПРОЕКТ",{"$nulls":5},{"$f":"IFERROR(Позиции[[#This Row],[КОЛИЧЕСТВО]]*Позиции[[#This Row],[ЦЕНА ЗА ЕДИНИЦУ]], \"\")","v":{"v":0,"d":"0.00 ₽"}}]
[null,"Ремонт ванной комнаты",{"$nulls":5},{"$f":"IFERROR(Позиции[[#This Row],[КОЛИЧЕСТВО]]*Позиции[[#This Row],[ЦЕНА ЗА ЕДИНИЦУ]], \"\")","v":{"v":0,"d":"0.00 ₽"}}]
[null,"КЕМ ПОДГОТОВЛЕНО:",{"$nulls":5},{"$f":"IFERROR(Позиции[[#This Row],[КОЛИЧЕСТВО]]*Позиции[[#This Row],[ЦЕНА ЗА ЕДИНИЦУ]], \"\")","v":{"v":0,"d":"0.00 ₽"}}]
[null,"Глеб Селезнев",{"$nulls":5},{"$f":"IFERROR(Позиции[[#This Row],[КОЛИЧЕСТВО]]*Позиции[[#This Row],[ЦЕНА ЗА ЕДИНИЦУ]], \"\")","v":{"v":0,"d":"0.00 ₽"}}]
[{"$nulls":7},{"$f":"IFERROR(Позиции[[#This Row],[КОЛИЧЕСТВО]]*Позиции[[#This Row],[ЦЕНА ЗА ЕДИНИЦУ]], \"\")","v":{"v":0,"d":"0.00 ₽"}}]
[{"$nulls":7},{"$f":"IFERROR(Позиции[[#This Row],[КОЛИЧЕСТВО]]*Позиции[[#This Row],[ЦЕНА ЗА ЕДИНИЦУ]], \"\")","v":{"v":0,"d":"0.00 ₽"}}]
[null,"ВНИМАНИЮ",{"$nulls":5},{"$f":"IFERROR(Позиции[[#This Row],[КОЛИЧЕСТВО]]*Позиции[[#This Row],[ЦЕНА ЗА ЕДИНИЦУ]], \"\")","v":{"v":0,"d":"0.00 ₽"}}]
[null,"Лилии Медведевой",{"$nulls":5},{"$f":"IFERROR(Позиции[[#This Row],[КОЛИЧЕСТВО]]*Позиции[[#This Row],[ЦЕНА ЗА ЕДИНИЦУ]], \"\")","v":{"v":0,"d":"0.00 ₽"}}]
[null,"УСЛОВИЯ ОПЛАТЫ",{"$nulls":5},{"$f":"IFERROR(Позиции[[#This Row],[КОЛИЧЕСТВО]]*Позиции[[#This Row],[ЦЕНА ЗА ЕДИНИЦУ]], \"\")","v":{"v":0,"d":"0.00 ₽"}}]
[null,"В течение 30 дней",{"$nulls":4},"ПРОМЕЖУТОЧНЫЙ ИТОГ",{"$f":"SUBTOTAL(109,Позиции[СУММА])","v":{"v":3189.5,"d":"3,189.50 ₽"}}]
[null,"СРОК ОПЛАТЫ",null,null,"ЭТО ПРЕДЛОЖЕНИЕ ВКЛЮЧАЕТ В СЕБЯ УКАЗАННЫЕ УСЛОВИЯ:",null,"СТАВКА НАЛОГА ",{"v":0.0775,"d":"7.75%"}]
[null,{"$f":"TODAY()+30","v":"2023-04-21"},null,null,"Введите здесь условия",null,"НАЛОГ С ПРОДАЖ ",{"$f":"IFERROR(ПромежуточныйИтог*СтавкаНалога, \"\")","v":{"v":247.18625,"d":"247.19 ₽"}}]
[{"$nulls":6},"ДРУГОЕ "]
[{"$nulls":6},"Итог",{"$f":"IFERROR(ПромежуточныйИтог+H35+Другое, \"\")","v":{"v":3436.68625,"d":"3,436.69 ₽"}}]
[]
[{"$nulls":4},"ПОСТАВЬТЕ ПОДПИСЬ НИЖЕ, ЧТОБЫ ПРИНЯТЬ ЦЕНОВОЕ ПРЕДЛОЖЕНИЕ:"]
[]
[{"$nulls":4},"УПОЛНОМОЧЕННЫЙ ПРЕДСТАВИТЕЛЬ",null,null,"ДАТА"]